bitfinex/quotes_SOLUSD_20220212
["timestamp","ask_amount","ask_price","bid_price","bid_amount"]
[1644683567719,0.25,95.985,95.903,5.211]
[1644683567916,5.211,95.984,95.92,15.641]
[1644683568315,0.25,95.983,95.92,15.641]
[1644683568715,5.21,95.982,95.92,15.641]
[1644683569119,106.87390296,95.981,95.9,15.6429]
[1644683569325,2.91977666,95.97,95.884,2.62390296]
[1644683569524,2.91977666,95.957,95.872,5.211]
[1644683569721,0.00977666,95.954,95.872,5.211]
[1644683569944,2.62390296,95.969,95.881,63.0]
[1644683570144,5.213,96.017,95.91,203.5822]
[1644683570345,5.211,96.037,95.941,104.0]
[1644683570543,15.995,96.083,95.95,15.04]
[1644683570744,5.208,96.036,95.951,23.0889]
[1644683570946,5.207,96.082,95.951,23.0889]
[1644683571148,5.207,96.088,95.952,19.25469256]
[1644683571347,5.207,96.089,96.0,187.95]
[1644683571546,13.1234664,96.087,96.01,15.04]
[1644683571948,5.205,96.135,96.01,15.04]
[1644683572149,37.73808276,96.135,96.011,2.62390296]
[1644683572446,112.5,96.105,96.02,15.619]
[1644683572648,5.204,96.104,96.02,30.659]
[1644683572848,5.204,96.104,96.02,15.04]
[1644683573048,13.13845193,96.103,96.02,15.04]
[1644683573247,42.74899871,96.101,96.02,15.04]
[1644683573450,5.205,96.1,96.02,15.04]
[1644683573753,5.455,96.1,96.02,30.6636]
[1644683573948,5.455,96.1,96.021,5.205]
[1644683574148,5.455,96.1,96.02,15.04]
[1644683574349,5.455,96.1,96.021,44.10990752]
[1644683574849,5.455,96.1,96.03,15.6224]
[1644683575450,5.455,96.1,96.02,15.04]
[1644683575649,0.25,96.1,96.02,15.04]
[1644683575850,5.205,96.099,96.02,15.04]
[1644683576253,0.25,96.098,95.982,2.62390296]
[1644683576449,0.25,96.098,95.99,15.04]
[1644683576450,5.206,96.097,95.99,15.04]
[1644683576850,13.32357084,96.096,95.99,15.04]
[1644683577050,5.206,96.095,95.99,15.04]
[1644683577248,0.25,96.094,95.99,15.04]
[1644683577451,15.6264,96.09,95.99,30.668]
[1644683577651,5.206,96.089,95.991,5.456]
[1644683577852,5.456,96.089,95.991,5.456]
[1644683578053,13.07357084,96.088,95.991,5.456]
[1644683578253,0.25,96.087,95.991,5.456]
[1644683578652,5.206,96.086,95.991,8.07990296]
[1644683578856,0.25,96.085,96.0,15.6259]
[1644683579053,1.46430153,96.066,96.0,28.12362769]
[1644683579252,46.83508294,96.065,96.0,43.16362769]
[1644683579453,46.58508294,96.065,96.0,45.78753065]
[1644683579853,41.37908294,96.065,96.0,45.78753065]
[1644683580255,112.5,96.1,96.0,45.78753065]
[1644683580256,1.46430153,96.078,96.0,45.78753065]
[1644683580654,1.46430153,96.082,96.001,104.0]
[1644683580855,1.46430153,96.087,96.02,15.6208]
[1644683581056,1.46430153,96.087,96.03,15.04]
[1644683581256,35.27028935,96.086,96.03,15.04]
[1644683581666,35.27028935,96.086,96.031,5.205]
[1644683582059,35.27028935,96.086,96.03,15.04]
[1644683582458,35.27028935,96.086,96.031,5.205]
[1644683582657,35.27028935,96.086,96.03,15.04]
[1644683582859,35.27028935,96.086,96.04,15.6209]
[1644683583059,35.27028935,96.086,96.03,15.04]
[1644683583258,5.205,96.085,96.03,15.04]
[1644683583658,0.25,96.084,96.03,15.04]
[1644683584064,1.46430153,96.081,96.03,15.04]
[1644683584259,0.25,96.08,96.03,15.04]
[1644683585463,1.71430153,96.082,96.03,15.04]
[1644683585663,1.46430153,96.08,96.03,15.04]
[1644683585863,0.25,96.079,96.03,15.04]
[1644683586668,1.21430153,96.083,96.031,0.25]
[1644683587163,35.27028935,96.086,96.031,0.25]
[1644683587669,35.27028935,96.086,96.03,15.04]
[1644683588264,0.25,96.085,96.031,0.25]
[1644683589564,0.25,96.085,96.03,15.04]
[1644683590765,0.25,96.085,96.031,0.25]
[1644683590966,5.205,96.084,96.031,0.25]
[1644683591370,0.25,96.083,96.031,0.25]
[1644683592070,0.25,96.083,96.03,30.6631]
[1644683592272,5.205,96.082,96.03,30.6631]
[1644683592671,0.25,96.081,96.03,30.6631]
[1644683592871,5.205,96.083,96.03,30.6631]
[1644683593071,5.455,96.084,96.03,30.6631]
[1644683593271,0.25,96.084,96.03,30.6631]
[1644683593471,5.205,96.083,96.03,30.6631]
[1644683593672,35.27028935,96.086,96.031,0.25]
[1644683593972,0.25,96.082,96.031,0.25]
[1644683595376,0.25,96.085,96.031,0.25]
[1644683595571,35.27028935,96.086,96.032,5.205]
[1644683595773,35.27028935,96.086,96.04,15.6213]
[1644683596573,34.93055117,96.086,96.04,30.6613]
[1644683597176,34.93055117,96.086,96.04,70.71211024]
[1644683597476,34.93055117,96.086,96.04,30.6613]
[1644683598676,5.204,96.112,96.041,2.62390296]
[1644683598873,5.204,96.128,96.06,15.6172]
[1644683599076,5.204,96.128,96.06,30.6572]
[1644683599275,0.25,96.127,96.06,30.6572]
[1644683599475,5.203,96.126,96.06,30.6572]
[1644683599673,43.52541715,96.125,96.06,15.04]
[1644683599875,5.203,96.124,96.06,15.04]
[1644683600278,0.25,96.123,96.06,15.04]
[1644683600476,5.203,96.122,96.06,15.04]
[1644683600679,5.203,96.122,96.061,0.25]
[1644683600880,0.25,96.121,96.061,0.25]
[1644683601080,5.203,96.12,96.061,0.25]
[1644683601283,0.25,96.119,96.061,0.25]
[1644683601485,0.25,96.119,96.06,15.04]
[1644683601486,5.203,96.118,96.06,15.04]
[1644683601983,0.25,96.117,96.06,15.04]
[1644683602183,5.203,96.116,96.06,15.04]
[1644683602582,0.25,96.115,96.06,15.04]
[1644683602784,5.203,96.114,96.06,15.04]
[1644683603187,0.25,96.113,96.06,15.04]
[1644683603386,5.203,96.112,96.06,15.04]
[1644683603606,5.203,96.112,96.061,0.25]
[1644683603789,0.25,96.111,96.061,0.25]
[1644683604186,41.65430195,96.109,96.061,0.25]
[1644683604897,0.25,96.108,96.061,0.25]
[1644683605086,5.203,96.107,96.061,0.25]
[1644683605286,0.25,96.106,96.061,0.25]
[1644683606794,0.25,96.108,96.061,0.25]
[1644683607494,0.25,96.108,96.06,15.04]
[1644683607894,0.25,96.108,96.061,0.25]
[1644683609093,5.203,96.107,96.061,0.25]
[1644683609495,5.203,96.127,96.062,2.62390296]
[1644683609699,23.3413,96.128,96.062,2.62390296]
[1644683609897,5.203,96.127,96.062,2.62390296]
[1644683610106,112.5,96.148,96.062,2.62390296]
[1644683610107,5.203,96.139,96.062,7.82690296]
[1644683610295,43.31020265,96.139,96.063,36.29116577]
[1644683610597,43.31020265,96.139,96.064,5.202]
[1644683610897,5.202,96.138,96.064,7.82590296]
[1644683611119,5.202,96.138,96.064,5.202]
[1644683611518,23.8429,96.137,96.064,5.202]
[1644683611718,24.0929,96.137,96.064,5.202]
[1644683613120,5.202,96.136,96.061,0.25]
[1644683613321,0.25,96.135,96.061,0.25]
[1644683613621,5.203,96.134,96.061,0.25]
[1644683613821,0.25,96.133,96.06,15.04]
[1644683614122,5.203,96.132,96.06,15.04]
[1644683614521,5.203,96.136,96.06,15.04]
[1644683615424,0.25,96.135,96.061,0.25]
[1644683615623,5.203,96.134,96.061,0.25]
[1644683615824,0.25,96.133,96.061,0.25]
[1644683616024,5.203,96.132,96.061,0.25]
[1644683616223,0.25,96.131,96.061,0.25]
[1644683616425,5.203,96.13,96.061,5.453]
[1644683616622,0.25,96.131,96.061,0.25]
[1644683616825,5.203,96.13,96.061,0.25]
[1644683617024,0.25,96.131,96.061,5.453]
[1644683617725,5.203,96.136,96.061,5.453]
[1644683617927,5.203,96.136,96.061,0.25]
[1644683619124,0.25,96.135,96.061,0.25]
[1644683619323,5.203,96.134,96.061,0.25]
[1644683619725,0.25,96.133,96.061,0.25]
[1644683620927,0.25,96.135,96.061,0.25]
[1644683621129,0.25,96.135,96.062,2.62390296]
[1644683621429,0.25,96.135,96.061,0.25]
[1644683621729,0.25,96.136,96.061,0.25]
[1644683622930,5.202,96.135,96.061,5.452]
[1644683623530,5.203,96.136,96.061,5.452]
[1644683624730,0.25,96.135,96.061,5.452]
[1644683624931,5.203,96.134,96.061,5.452]
[1644683625432,0.25,96.133,96.061,5.452]
[1644683625636,0.25,96.133,96.061,0.25]
[1644683626230,0.25,96.136,96.061,0.25]
[1644683626433,5.452,96.136,96.061,0.25]
[1644683626631,4.452,96.136,96.054,5.203]
[1644683626831,13.13599267,96.135,96.029,0.75]
[1644683627031,5.203,96.134,96.02,15.04]
[1644683627234,5.203,96.134,96.03,15.04]
[1644683627433,5.203,96.134,96.033,0.75]
[1644683627633,104.0,96.132,96.033,3.37390296]
[1644683627833,15.6199,96.13,96.034,2.87390296]
[1644683628034,15.6199,96.13,96.035,0.75]
[1644683628333,5.453,96.129,96.035,3.37390296]
[1644683628532,18.58899267,96.129,96.036,2.62390296]
[1644683628734,18.58899267,96.129,96.037,5.203]
[1644683628933,13.13599267,96.128,96.04,15.04]
[1644683629131,5.203,96.127,96.042,16.13156899]
[1644683629632,13.13599267,96.126,96.042,16.13156899]
[1644683630133,28.3713,96.125,96.042,16.13156899]
[1644683630334,45.03218628,96.124,96.042,16.13156899]
[1644683630533,12.21866182,96.123,96.04,17.66390296]
[1644683630935,13.13599267,96.122,96.04,17.66390296]
[1644683631136,5.203,96.121,96.04,17.66390296]
[1644683631337,9.62920279,96.121,96.04,17.66390296]
[1644683631736,13.38599267,96.12,96.04,17.66390296]
[1644683631937,5.203,96.119,96.04,17.66390296]
[1644683632137,18.33899267,96.119,96.04,17.66390296]
[1644683632537,13.13599267,96.118,96.04,17.66390296]
[1644683632736,5.204,96.117,96.04,17.66390296]
[1644683633440,13.13599267,96.116,96.04,17.66390296]
[1644683633940,5.204,96.115,96.04,17.66390296]
[1644683634139,5.204,96.115,96.011,5.204]
[1644683634338,5.204,96.115,96.007,2.62390296]
[1644683634339,15.04,96.11,96.007,2.62390296]
[1644683634542,104.0,96.108,95.991,5.205]
[1644683634739,5.205,96.107,95.998,5.205]
[1644683634940,4.42620279,96.096,95.99,15.04]
[1644683635142,15.6274,96.09,95.991,23.6571]
[1644683635341,5.206,96.089,95.991,23.6571]
[1644683635541,18.34199267,96.089,95.991,23.6571]
[1644683635743,18.34199267,96.089,95.99,15.04]
[1644683635744,2.62390296,96.088,95.99,15.04]
[1644683635942,20.96589563,96.088,95.99,15.04]
[1644683636140,15.75989563,96.088,95.99,15.04]
[1644683636343,9.63220279,96.091,95.99,15.04]
[1644683636344,65.97826144,96.087,95.99,15.04]
[1644683636541,104.0,96.086,95.99,15.04]
[1644683636741,5.206,96.085,95.99,15.04]
[1644683636941,15.6286,96.08,95.99,15.04]
[1644683637141,5.206,96.079,95.991,0.25]
[1644683637363,13.13599267,96.084,95.991,0.25]
[1644683637542,13.13599267,96.078,95.991,0.25]
[1644683637943,0.25,96.077,95.991,0.25]
[1644683638143,5.206,96.076,95.991,0.25]
[1644683638341,0.25,96.075,95.991,0.25]
[1644683638743,15.6295,96.07,95.991,13.81525977]
[1644683639045,54.98727298,96.069,95.991,13.81525977]
[1644683639242,5.206,96.068,95.991,13.81525977]
[1644683640347,13.09626283,96.067,95.991,13.81525977]
[1644683640545,5.206,96.066,95.991,13.81525977]
[1644683640945,13.09626283,96.065,95.991,13.81525977]
[1644683641149,13.09626283,96.065,95.991,19.02125977]
[1644683641347,41.85128031,96.069,95.992,20.53043729]
[1644683641547,5.206,96.098,95.992,47.3976592]
[1644683641753,28.9628,96.114,95.994,104.0]
[1644683642145,13.12148106,96.113,96.0,187.95]
[1644683642346,13.12148106,96.113,96.01,15.04]
[1644683642549,47.83666496,96.112,96.04,15.6191]
[1644683642747,47.83666496,96.112,96.041,13.56525977]
[1644683642951,13.12148106,96.111,96.041,13.56525977]
[1644683643150,13.12148106,96.111,96.042,2.62390296]
[1644683643349,13.12148106,96.111,96.042,7.82790296]
[1644683643757,13.12148106,96.118,96.042,7.82790296]
[1644683644151,39.32675452,96.117,96.042,7.82790296]
[1644683644874,5.204,96.116,96.05,15.6188]
[1644683645051,24.7477,96.115,96.05,30.6588]
[1644683645251,24.7477,96.115,96.051,5.203]
[1644683646657,13.13090142,96.114,96.051,5.203]
[1644683646856,13.13090142,96.114,96.05,30.6587]
[1644683646857,5.203,96.113,96.05,30.6587]
[1644683647662,5.203,96.114,96.05,30.6587]
[1644683648262,13.13164561,96.113,96.05,30.6587]
[1644683648461,5.203,96.112,96.05,30.6587]
[1644683649163,0.25,96.111,96.05,30.6587]
[1644683649365,24.7477,96.115,96.05,30.6587]
[1644683649762,13.13270393,96.114,96.05,30.6587]
[1644683650763,0.25,96.113,96.05,30.6587]
[1644683651063,24.7477,96.115,96.05,30.6587]
[1644683651262,24.2477,96.115,96.051,5.203]
[1644683651470,0.25,96.114,96.06,15.6166]
[1644683651664,5.203,96.114,96.06,15.6166]
[1644683652577,39.32675452,96.117,96.061,22.23952654]
[1644683652777,39.32675452,96.117,96.07,15.616]
[1644683653880,5.453,96.116,96.052,11.61]
[1644683654079,28.4496,96.116,96.052,11.61]
[1644683654678,28.4496,96.116,96.052,48.13780646]
[1644683655078,23.2466,96.116,96.052,48.13780646]
[1644683655477,39.32675452,96.117,96.052,48.13780646]
[1644683655678,5.203,96.116,96.052,48.13780646]
[1644683655878,28.7843,96.139,96.06,15.6174]
[1644683656078,23.5813,96.139,96.06,30.6574]
[1644683656278,1.65694,96.14,96.061,2.62390296]
[1644683656478,13.15118347,96.138,96.061,2.62390296]
[1644683656681,5.202,96.137,96.061,2.62390296]
[1644683656878,37.34471541,96.136,96.061,2.62390296]
[1644683657481,37.34471541,96.136,96.08,15.6134]
[1644683657680,37.34471541,96.136,96.081,22.26301948]
[1644683658282,1.65694,96.14,96.081,22.26301948]
[1644683658482,1.65694,96.14,96.09,15.6108]
[1644683658681,5.202,96.139,96.1,15.04]
[1644683659082,5.202,96.139,96.08,15.04]
[1644683659481,4.702,96.139,96.08,15.04]
[1644683659682,0.25,96.138,96.08,30.6531]
[1644683659881,5.202,96.137,96.08,30.6531]
[1644683660083,39.92054929,96.136,96.08,30.6531]
[1644683660282,5.202,96.135,96.08,30.6531]
[1644683660483,18.34787848,96.135,96.08,30.6531]
[1644683660885,13.14587848,96.134,96.08,30.6531]
[1644683661086,5.202,96.133,96.08,30.6531]
[1644683661284,13.14587848,96.134,96.08,30.6531]
[1644683661685,13.14587848,96.135,96.081,0.25]
[1644683662486,35.96227695,96.136,96.081,0.25]
[1644683663489,0.25,96.135,96.081,0.25]
[1644683663689,5.452,96.135,96.081,0.25]
[1644683664587,5.202,96.135,96.081,0.25]
[1644683664787,35.96227695,96.136,96.081,0.25]
[1644683666291,5.202,96.135,96.081,0.25]
[1644683667291,3.96493637,96.134,96.081,0.25]
[1644683667490,35.96227695,96.136,96.081,0.25]
[1644683667991,5.202,96.135,96.081,0.25]
[1644683668392,5.202,96.135,96.09,15.6124]
[1644683668591,1.65694,96.14,96.09,30.6524]
[1644683668793,1.65694,96.14,96.091,5.202]
[1644683669395,1.65694,96.14,96.092,37.69741063]
[1644683669593,1.65694,96.14,96.09,15.04]
[1644683669795,1.65694,96.14,96.1,15.6104]
[1644683670697,1.65694,96.14,96.1,30.6504]
[1644683671099,1.65694,96.14,96.101,34.38005165]
[1644683671497,1.65694,96.14,96.1,30.6504]
[1644683672699,40.85297696,96.138,96.1,30.6504]
[1644683672903,5.2,96.137,96.1,30.6504]
[1644683673103,5.2,96.137,96.1,15.04]
[1644683674110,40.85297696,96.138,96.1,15.04]
[1644683676515,1.65694,96.14,96.1,30.6508]
[1644683677215,1.65694,96.14,96.101,2.62390296]
[1644683677615,1.65694,96.14,96.11,15.6083]
[1644683677817,1.65694,96.14,96.12,15.04]
[1644683678216,1.65694,96.14,96.121,7.82390296]
[1644683678631,1.65694,96.14,96.122,2.62390296]
[1644683679032,1.65694,96.14,96.122,14.36390296]
[1644683679434,1.65694,96.14,96.123,2.62390296]
[1644683679635,1.65694,96.14,96.123,7.82390296]
[1644683679833,1.65694,96.14,96.13,15.6051]
[1644683680032,1.65694,96.14,96.13,30.6451]
[1644683680435,0.65694,96.14,96.13,30.6451]
[1644683680638,0.65694,96.14,96.13,15.04]
[1644683681437,0.65694,96.14,96.11,15.6087]
[1644683681635,0.65694,96.14,96.11,30.6487]
[1644683683237,0.65694,96.14,96.11,15.6087]
[1644683685237,0.65694,96.14,96.09,67.069]
[1644683685437,0.65694,96.14,96.09,67.319]
[1644683685641,0.65694,96.14,96.09,15.29]
[1644683686841,0.65694,96.14,96.1,15.6107]
[1644683687639,30.0,96.139,96.09,15.04]
[1644683687842,35.202,96.139,96.07,15.04]
[1644683688040,2.93586922,96.132,96.04,15.04]
[1644683688340,2.93586922,96.124,96.04,30.6596]
[1644683688539,2.93586922,96.121,96.04,30.6596]
[1644683688739,29.7552,96.12,96.04,30.6596]
[1644683689140,3.97329844,96.119,96.04,30.9096]
[1644683689340,5.204,96.118,96.04,30.9096]
[1644683689742,38.29636165,96.116,96.04,30.9096]
[1644683689944,9.17729844,96.115,96.04,30.9096]
[1644683690146,3.97329844,96.114,96.04,30.9096]
[1644683690343,5.204,96.113,96.04,30.9096]
[1644683690844,4.04832853,96.112,96.04,30.9096]
[1644683691043,5.204,96.111,96.04,30.9096]
[1644683691246,0.25,96.11,96.04,30.9096]
[1644683691644,5.204,96.109,96.041,5.204]
[1644683692249,4.04852589,96.108,96.041,5.204]
[1644683692450,5.204,96.107,96.041,5.204]
[1644683692654,4.04852589,96.106,96.041,5.204]
[1644683692849,5.204,96.109,96.041,5.204]
[1644683693148,5.204,96.106,96.05,15.6191]
[1644683693351,5.204,96.109,96.05,15.6191]
[1644683694450,27.48806922,96.12,96.05,15.6191]
[1644683694651,5.204,96.129,96.07,15.6151]
[1644683694851,5.203,96.137,96.07,15.6151]
[1644683695154,4.0456835,96.136,96.071,2.62390296]
[1644683695351,5.202,96.135,96.07,15.6151]
[1644683695554,46.14689731,96.134,96.07,15.6151]
[1644683695752,4.0456835,96.133,96.07,15.6151]
[1644683695952,9.2476835,96.133,96.07,15.6151]
[1644683696152,4.0456835,96.132,96.07,15.6151]
[1644683696354,4.0456835,96.132,96.071,2.62390296]
[1644683696552,4.0456835,96.133,96.071,2.62390296]
[1644683698054,4.0456835,96.133,96.081,31.75787739]
[1644683699053,42.10121381,96.134,96.081,31.75787739]
[1644683699853,42.10121381,96.134,96.08,15.6144]
[1644683700653,0.65694,96.14,96.08,15.6144]
[1644683700855,0.65694,96.14,96.081,7.82590296]
[1644683701056,0.65694,96.14,96.09,15.611]
[1644683701356,0.65694,96.14,96.09,22.951]
[1644683701558,0.65694,96.14,96.1,15.04]
[1644683701755,2.93586922,96.174,96.101,76.54002547]
[1644683701955,2.93586922,96.177,96.102,104.0]
[1644683702156,26.32416922,96.195,96.102,106.62390296]
[1644683702356,23.3883,96.195,96.102,123.71143729]
[1644683702555,23.3883,96.195,96.101,48.54002547]
[1644683702556,4.04350654,96.194,96.11,15.6065]
[1644683702758,2.93586922,96.189,96.12,15.04]
[1644683703058,17.20949936,96.193,96.121,30.40456047]
[1644683703256,26.32416922,96.195,96.121,47.31746343]
[1644683703257,23.3883,96.195,96.121,47.31746343]
[1644683703456,23.3883,96.195,96.122,2.62390296]
[1644683703659,22.40463256,96.194,96.122,2.62390296]
[1644683703855,18.3654866,96.194,96.122,2.62390296]
[1644683704055,5.199,96.194,96.122,2.62390296]
[1644683704878,5.199,96.194,96.121,30.40456047]
[1644683705059,20.13561848,96.193,96.121,30.40456047]
[1644683705257,5.199,96.192,96.121,30.40456047]
[1644683705458,22.39874926,96.192,96.121,30.40456047]
[1644683705661,4.03856312,96.191,96.121,30.40456047]
[1644683705859,5.199,96.19,96.121,30.40456047]
[1644683706060,4.03856312,96.189,96.121,30.40456047]
[1644683706262,5.199,96.188,96.121,30.40456047]
[1644683706460,4.03856312,96.187,96.121,30.40456047]
[1644683706659,1.46710451,96.167,96.121,30.40456047]
[1644683706859,1.46710451,96.166,96.121,30.40456047]
[1644683707463,1.46710451,96.166,96.121,33.02846343]
[1644683707665,1.46710451,96.169,96.13,15.6046]
[1644683707863,23.5238,96.218,96.13,15.6046]
[1644683707864,0.96710451,96.178,96.13,38.8446]
[1644683708063,5.199,96.2,96.131,2.62390296]
[1644683708265,2.93586922,96.216,96.131,2.62390296]
[1644683708465,5.199,96.214,96.131,2.62390296]
[1644683708664,42.40553644,96.213,96.131,2.62390296]
[1644683708864,9.22736316,96.212,96.131,2.62390296]
[1644683709065,18.36921969,96.212,96.131,2.62390296]
[1644683709467,4.42620279,96.251,96.131,2.62390296]
[1644683709468,2.93586922,96.231,96.141,43.34002547]
[1644683709670,32.24416922,96.238,96.15,15.04]
[1644683709867,24.1103,96.238,96.151,5.198]
[1644683710271,24.1103,96.238,96.151,7.82190296]
[1644683710470,37.43791615,96.237,96.16,15.5993]
[1644683710668,50.61462757,96.237,96.17,15.04]
[1644683710871,5.197,96.236,96.17,15.04]
[1644683711169,13.17671142,96.236,96.171,7.82090296]
[1644683711370,5.197,96.235,96.171,2.62390296]
[1644683711568,5.197,96.235,96.17,15.04]
[1644683711569,5.197,96.235,96.172,2.62390296]
[1644683711768,5.197,96.236,96.17,15.04]
[1644683711968,18.35245775,96.234,96.17,15.04]
[1644683712270,17.17424927,96.233,96.17,15.04]
[1644683712489,13.15545775,96.233,96.17,15.04]
[1644683712687,13.15545775,96.232,96.17,15.04]
[1644683712887,13.15545775,96.232,96.171,2.62390296]
[1644683713089,13.15545775,96.235,96.17,15.04]
[1644683713291,5.197,96.234,96.17,15.29]
[1644683713691,5.197,96.236,96.17,17.91390296]
[1644683713890,37.43791615,96.237,96.171,5.197]
[1644683714190,5.197,96.236,96.171,11.71]
[1644683714392,37.43791615,96.237,96.172,7.82090296]
[1644683714690,37.43791615,96.237,96.173,2.62390296]
[1644683714891,37.43791615,96.237,96.18,15.5968]
[1644683715091,37.43791615,96.237,96.181,40.70377549]
[1644683715294,37.43791615,96.237,96.181,43.32767845]
[1644683715690,37.43791615,96.237,96.182,2.62390296]
[1644683715890,22.9698,96.261,96.182,2.62390296]
[1644683716096,5.196,96.26,96.19,15.5954]
[1644683716292,22.9698,96.261,96.19,15.5954]
[1644683716293,22.9698,96.261,96.191,5.196]
[1644683716491,22.9698,96.261,96.191,7.81990296]
[1644683716693,22.9698,96.261,96.192,2.62390296]
[1644683716892,47.93742498,96.26,96.192,2.62390296]
[1644683717092,47.93742498,96.26,96.193,5.196]
[1644683717392,5.196,96.259,96.194,2.62390296]
[1644683717793,5.196,96.259,96.2,15.5925]
[1644683717992,47.93742498,96.26,96.201,34.65736534]
[1644683718192,5.195,96.259,96.201,34.65736534]
[1644683718393,5.195,96.259,96.202,2.62390296]
[1644683718596,47.93742498,96.26,96.202,7.81890296]
[1644683719595,5.195,96.287,96.21,15.5917]
[1644683719796,5.195,96.284,96.21,30.6317]
[1644683719996,23.3642,96.286,96.211,2.62390296]
[1644683720203,5.194,96.285,96.211,2.62390296]
[1644683720604,44.71320332,96.284,96.211,2.62390296]
[1644683720805,44.71320332,96.284,96.212,5.194]
[1644683720806,5.194,96.283,96.212,5.194]
[1644683721107,5.194,96.283,96.213,2.62390296]
[1644683721604,5.194,96.283,96.214,5.194]
[1644683721805,5.194,96.283,96.221,34.28434497]
[1644683722705,23.3642,96.286,96.221,34.28434497]
[1644683722706,23.3642,96.286,96.222,2.62390296]
[1644683723106,23.3642,96.286,96.23,15.5883]
[1644683723306,36.53172952,96.308,96.24,15.04]
[1644683723506,36.53172952,96.308,96.241,39.46024097]
[1644683724909,36.53172952,96.308,96.25,15.5849]
[1644683725110,5.192,96.307,96.25,30.6249]
[1644683726510,5.192,96.307,96.25,30.8749]
[1644683727713,36.53172952,96.308,96.25,30.8749]
[1644683728714,4.00242122,96.307,96.25,30.8749]
[1644683729716,5.192,96.306,96.25,30.8749]
[1644683729916,4.00242122,96.305,96.25,30.8749]
[1644683730118,5.192,96.304,96.25,15.29]
[1644683730316,4.00242122,96.303,96.25,15.29]
[1644683730915,9.19442122,96.302,96.25,15.29]
[1644683731135,4.00242122,96.301,96.25,15.29]
[1644683731545,2.93586922,96.302,96.25,15.29]
[1644683732138,5.192,96.301,96.25,15.29]
[1644683732337,4.00242122,96.3,96.25,15.29]
[1644683732539,2.93586922,96.304,96.25,15.29]
[1644683732739,8.12786922,96.304,96.25,15.29]
[1644683733139,4.00242122,96.303,96.25,15.29]
[1644683733338,8.12786922,96.302,96.25,15.29]
[1644683733539,8.12786922,96.302,96.25,0.25]
[1644683733739,0.04668872,96.247,96.23,15.04]
[1644683735443,0.04668872,96.247,96.231,5.195]
[1644683736544,0.04668872,96.247,96.23,30.6278]
[1644683737645,0.04668872,96.247,96.231,0.25]
[1644683738046,0.04668872,96.247,96.231,2.87390296]
[1644683738246,0.04668872,96.247,96.232,2.62390296]
[1644683739646,0.04668872,96.247,96.233,5.195]
[1644683740049,0.04668872,96.247,96.234,2.62390296]
[1644683740451,0.04668872,96.247,96.235,5.195]
[1644683740752,0.04668872,96.247,96.236,2.62390296]
[1644683740951,0.04668872,96.247,96.24,15.04]
[1644683741353,0.04668872,96.247,96.242,26.35378539]
[1644683741553,0.04668872,96.247,96.243,5.195]
[1644683741755,0.04668872,96.247,96.243,7.81890296]
[1644683741953,0.04668872,96.247,96.244,2.62390296]
[1644683742154,0.04668872,96.247,96.245,5.195]
[1644683742552,0.04668872,96.247,96.246,2.62390296]
[1644683743154,0.04668872,96.247,96.242,26.35378539]
[1644683743356,0.04668872,96.247,96.246,10.24]
[1644683743755,0.04668872,96.247,96.246,12.86390296]
[1644683744155,0.04668872,96.247,96.246,13.11390296]
[1644683744955,0.04668872,96.247,96.246,18.30790296]